Workbook

Sheet Sheet1
A1: Proforma (projected income by third quarter 2026)
A2: Las Magnolias Subdivision/ Signature Living
A3: EDINBURG, TX
A6: LOTS 1,6,7,8,9,10 (Each lot has 4 condominiums)
A8: OPERATING SUMMARY | E8: 1 lot (4 condos) | F8: 1 lot 4 (condos) | G8: 6 lots (24 condos)
A10: Operating Income | E10: Monthly | F10: Year | G10: Year
B11: Gross Monthly Rental Income | E11: 6400 | F11: =E11*12 -> 76800 | G11: =F11*6 -> 460800
A12: Total Operating Income | E12: =SUM(E11) -> 6400 | F12: =SUM(F11) -> 76800 | G12: =SUM(G11) -> 460800
E14: Monthly | F14: Year | G14: Year
A15: Operating Expenses
B16: Home Insurance | E16: 182 | F16: =E16*12 -> 2184 | G16: =F16*6 -> 13104
B17: Property Taxes | E17: 800.67 | F17: =E17*12 -> 9608.04 | G17: =F17*6 -> 57648.24
B18: Water Bill | E18: 100 | F18: =E18*12 -> 1200 | G18: 7200
B19: Electric Bill | E19: 30.85 | F19: 370.2 | G19: 2221.2
B20: HOA Fee | E20: 50 | F20: 600 | G20: 3600
B21: trash-included in the water bill | E21: 0 | F21: 0 | G21: 0
B22: Landscaping Maintenance | E22: 70 | F22: 840 | G22: 5040
A23: Total Operating Expenses | E23: =SUM(E16:E22) -> 1233.52 | F23: =SUM(F16:F22) -> 14802.24 | G23: =SUM(G16:G22) -> 88813.44
A25: NET OPERATING INCOME | E25: =E12-E23 -> 5166.48 | F25: =F12-F23 -> 61997.76 | G25: =G12-G23 -> 371986.56

Sheet Sheet2

Sheet Sheet3
